[Event "Titled Tuesday Blitz April 26 Late 2022"]
[White "Przybylski, Wojciech"]
[Black "Xu, Yi"]
[WhiteFideId "1117599"]
[BlackFideId "8605564"]
[WhiteElo "2133"]
[BlackElo "2471"]
[Result "0-1"]
[Round "01"]
[TimeControl "180+1"]
[Date "2022.04.26"]
[WhiteClock "0:00:01"]
[BlackClock "0:00:11"]

1. e4 {[%clk 0:02:57]}  c5 {[%clk 0:02:59]} 2. Nf3 {[%clk 0:02:50]}  d6 {[%clk 0:02:58]} 3. Bb5+ {[%clk 0:02:49]}  Nd7 {[%clk 0:02:58]} 4. Ba4 {[%clk 0:02:48]}  Nf6 {[%clk 0:02:53]} 5. Nc3 {[%clk 0:02:48]}  a6 {[%clk 0:02:51]} 6. Bb3 {[%clk 0:02:48]}  e6 {[%clk 0:02:51]} 7. d3 {[%clk 0:02:44]}  b5 {[%clk 0:02:51]} 8. O-O {[%clk 0:02:42]}  Bb7 {[%clk 0:02:51]} 9. a4 {[%clk 0:02:39]}  b4 {[%clk 0:02:46]} 10. Ne2 {[%clk 0:02:38]}  Qc7 {[%clk 0:02:42]} 11. h3 {[%clk 0:02:36]}  g6 {[%clk 0:02:42]} 12. Bf4 {[%clk 0:02:33]}  Bg7 {[%clk 0:02:42]} 13. c3 {[%clk 0:02:32]}  bxc3 {[%clk 0:02:39]} 14. bxc3 {[%clk 0:02:32]}  O-O {[%clk 0:02:39]} 15. Ng3 {[%clk 0:02:22]}  Rfd8 {[%clk 0:02:37]} 16. Bc2 {[%clk 0:02:20]}  Ne5 {[%clk 0:02:35]} 17. Nd2 {[%clk 0:02:14]}  Rac8 {[%clk 0:02:30]} 18. Be3 {[%clk 0:02:08]}  c4 {[%clk 0:02:17]} 19. d4 {[%clk 0:02:06]}  Nd3 {[%clk 0:02:17]} 20. Nxc4 {[%clk 0:01:40]}  Nxf2 {[%clk 0:02:09]} 21. Rxf2 {[%clk 0:01:39]}  Qxc4 {[%clk 0:02:10]} 22. Bd2 {[%clk 0:01:35]}  e5 {[%clk 0:01:57]} 23. d5 {[%clk 0:01:31]}  Nd7 {[%clk 0:01:54]} 24. Rb1 {[%clk 0:01:27]}  Qc7 {[%clk 0:01:48]} 25. Qf3 {[%clk 0:01:20]}  Rf8 {[%clk 0:01:46]} 26. h4 {[%clk 0:01:03]}  h5 {[%clk 0:01:43]} 27. Bd3 {[%clk 0:00:47]}  Nf6 {[%clk 0:01:41]} 28. Be1 {[%clk 0:00:37]}  Ra8 {[%clk 0:01:29]} 29. Rfb2 {[%clk 0:00:29]}  Bc8 {[%clk 0:01:29]} 30. Qe3 {[%clk 0:00:27]}  Ng4 {[%clk 0:01:22]} 31. Qe2 {[%clk 0:00:22]}  Bh6 {[%clk 0:01:19]} 32. Nf1 {[%clk 0:00:21]}  Bd7 {[%clk 0:01:02]} 33. Rb7 {[%clk 0:00:16]}  Qc5+ {[%clk 0:00:56]} 34. Kh1 {[%clk 0:00:16]}  Bxa4 {[%clk 0:00:55]} 35. Bxa6 {[%clk 0:00:08]}  Qa5 {[%clk 0:00:20]} 36. Bd3 {[%clk 0:00:07]}  Qd8 {[%clk 0:00:20]} 37. Qf3 {[%clk 0:00:06]}  Bd7 {[%clk 0:00:19]} 38. Be2 {[%clk 0:00:05]}  Ra2 {[%clk 0:00:19]} 39. Qd3 {[%clk 0:00:05]}  f5 {[%clk 0:00:17]} 40. exf5 {[%clk 0:00:02]}  Bxf5 {[%clk 0:00:16]} 41. Qc4 {[%clk 0:00:02]}  Bxb1 {[%clk 0:00:16]} 42. Rxb1 {[%clk 0:00:02]}  Ra7 {[%clk 0:00:17]} 43. Qe4 {[%clk 0:00:02]}  Rg7 {[%clk 0:00:15]} 44. Bf3 {[%clk 0:00:02]}  Nf6 {[%clk 0:00:15]} 45. Qe2 {[%clk 0:00:02]}  Qe7 {[%clk 0:00:15]} 46. Ng3 {[%clk 0:00:02]}  Ng4 {[%clk 0:00:14]} 47. Ne4 {[%clk 0:00:02]}  Nf6 {[%clk 0:00:13]} 48. Ng5 {[%clk 0:00:02]}  Bxg5 {[%clk 0:00:13]} 49. hxg5 {[%clk 0:00:02]}  Nh7 {[%clk 0:00:13]} 50. Bh4 {[%clk 0:00:01]}  Nxg5 {[%clk 0:00:11]} 51. Qe3 {[%clk 0:00:01]}  Rf4 {[%clk 0:00:12]} 52. g3 {[%clk 0:00:01]}  Rxh4+ {[%clk 0:00:11]} 53. gxh4 {[%clk 0:00:01]}  Nxf3 {[%clk 0:00:12]} 54. Qxf3 {[%clk 0:00:02]}  Qxh4+ {[%clk 0:00:12]} 55. Kg2 {[%clk 0:00:02]}  Rf7 {[%clk 0:00:12]} 56. Rb8+ {[%clk 0:00:02]}  Kg7 {[%clk 0:00:13]} 57. Qg3 {[%clk 0:00:02]}  Qe4+ {[%clk 0:00:12]} 58. Kh2 {[%clk 0:00:02]}  Qxd5 {[%clk 0:00:11]} 59. Rb2 {[%clk 0:00:01]}  Qe4 {[%clk 0:00:11]} 60. Rg2 {[%clk 0:00:01]}  Qf4 {[%clk 0:00:11]} 61. Kh3 {[%clk 0:00:01]}  Qxg3+ {[%clk 0:00:11]} 62. Kxg3 {[%clk 0:00:01]}  Rf4 {[%clk 0:00:11]} 63. Rc2 {[%clk 0:00:01]}  Rc4 {[%clk 0:00:11]} 64. Rd2 {[%clk 0:00:02]}  Kh6 {[%clk 0:00:11]} 65. Rd3 {[%clk 0:00:02]}  Kg5 {[%clk 0:00:12]} 66. Rf3 {[%clk 0:00:01]}  d5 {[%clk 0:00:11]} 67. Rd3 {[%clk 0:00:01]}  d4 {[%clk 0:00:11]} 68. cxd4 {[%clk 0:00:02]}  Rxd4 {[%clk 0:00:12]} 69. Re3 {[%clk 0:00:02]}  Rg4+ {[%clk 0:00:11]} 70. Kh3 {[%clk 0:00:02]}  e4 {[%clk 0:00:12]} 71. Re1 {[%clk 0:00:02]}  Rf4 {[%clk 0:00:12]} 72. Rg1+ {[%clk 0:00:02]}  Kf5 {[%clk 0:00:12]} 73. Re1 {[%clk 0:00:02]}  g5 {[%clk 0:00:08]} 74. Kg3 {[%clk 0:00:02]}  Rf3+ {[%clk 0:00:08]} 75. Kg2 {[%clk 0:00:03]}  Kf4 {[%clk 0:00:09]} 76. Ra1 {[%clk 0:00:03]}  Rd3 {[%clk 0:00:09]} 77. Ra6 {[%clk 0:00:03]}  Rd2+ {[%clk 0:00:09]} 78. Kg1 {[%clk 0:00:03]}  Kg3 {[%clk 0:00:09]} 79. Ra3+ {[%clk 0:00:03]}  Kg4 {[%clk 0:00:10]} 80. Ra4 {[%clk 0:00:03]}  Kf3 {[%clk 0:00:10]} 81. Ra3+ {[%clk 0:00:03]}  e3 {[%clk 0:00:11]} 82. Ra1 {[%clk 0:00:03]}  g4 {[%clk 0:00:10]} 83. Rb1 {[%clk 0:00:03]}  h4 {[%clk 0:00:10]} 84. Ra1 {[%clk 0:00:03]}  Kg3 {[%clk 0:00:10]} 85. Rb1 {[%clk 0:00:03]}  Re2 {[%clk 0:00:10]} 86. Rf1 {[%clk 0:00:02]}  Rg2+ {[%clk 0:00:10]} 87. Kh1 {[%clk 0:00:03]}  Rh2+ {[%clk 0:00:10]} 88. Kg1 {[%clk 0:00:03]}  Rf2 {[%clk 0:00:11]} 89. Rc1 {[%clk 0:00:02]}  h3 {[%clk 0:00:11]} 90. Rc3 {[%clk 0:00:02]}  Rf3 {[%clk 0:00:11]} 91. Rc1 {[%clk 0:00:01]}  e2 {[%clk 0:00:11]} 0-1


[Site "https://www.chess.com"]

[Event "Titled Tuesday Blitz April 26 Late 2022"]
[White "Qiao, Cindy"]
[Black "Araujo Sanchez, Josue"]
[WhiteFideId "2620243"]
[BlackFideId "6416896"]
[WhiteElo "2231"]
[BlackElo "2339"]
[Result "1-0"]
[Round "01"]
[TimeControl "180+1"]
[Date "2022.04.26"]
[WhiteClock "0:00:12"]
[BlackClock "0:00:42"]

1. d4 {[%clk 0:03:00]}  Nf6 {[%clk 0:02:59]} 2. Bf4 {[%clk 0:03:00]}  g6 {[%clk 0:02:58]} 3. Nc3 {[%clk 0:03:00]}  d5 {[%clk 0:02:57]} 4. e3 {[%clk 0:02:59]}  Bg7 {[%clk 0:02:57]} 5. Nb5 {[%clk 0:02:59]}  Na6 {[%clk 0:02:56]} 6. Nf3 {[%clk 0:02:59]}  O-O {[%clk 0:02:57]} 7. h3 {[%clk 0:02:58]}  Ne4 {[%clk 0:02:54]} 8. Bd3 {[%clk 0:02:26]}  c6 {[%clk 0:02:38]} 9. Nc3 {[%clk 0:02:25]}  Nxc3 {[%clk 0:02:35]} 10. bxc3 {[%clk 0:02:26]}  Nc7 {[%clk 0:02:32]} 11. c4 {[%clk 0:02:21]}  c5 {[%clk 0:02:15]} 12. c3 {[%clk 0:02:06]}  b6 {[%clk 0:02:11]} 13. O-O {[%clk 0:02:03]}  Bb7 {[%clk 0:02:10]} 14. Rb1 {[%clk 0:01:42]}  dxc4 {[%clk 0:01:49]} 15. Bxc4 {[%clk 0:01:43]}  Nd5 {[%clk 0:01:48]} 16. Bxd5 {[%clk 0:01:25]}  Qxd5 {[%clk 0:01:47]} 17. a3 {[%clk 0:01:18]}  Rfd8 {[%clk 0:01:45]} 18. Qe2 {[%clk 0:01:08]}  cxd4 {[%clk 0:01:39]} 19. cxd4 {[%clk 0:01:03]}  Rac8 {[%clk 0:01:38]} 20. Rfc1 {[%clk 0:00:59]}  Qa5 {[%clk 0:01:37]} 21. Bc7 {[%clk 0:00:18]}  Rd7 {[%clk 0:01:28]} 22. Be5 {[%clk 0:00:18]}  Rxc1+ {[%clk 0:01:26]} 23. Rxc1 {[%clk 0:00:19]}  Qxa3 {[%clk 0:01:21]} 24. Rd1 {[%clk 0:00:18]}  Bxf3 {[%clk 0:01:11]} 25. gxf3 {[%clk 0:00:16]}  Bxe5 {[%clk 0:01:05]} 26. dxe5 {[%clk 0:00:17]}  Rxd1+ {[%clk 0:01:04]} 27. Qxd1 {[%clk 0:00:18]}  Qc5 {[%clk 0:01:04]} 28. f4 {[%clk 0:00:17]}  Qc8 {[%clk 0:01:01]} 29. Qa4 {[%clk 0:00:16]}  a5 {[%clk 0:00:59]} 30. Qb5 {[%clk 0:00:16]}  Qa8 {[%clk 0:00:59]} 31. Qxb6 {[%clk 0:00:15]}  a4 {[%clk 0:01:00]} 32. Qb2 {[%clk 0:00:14]}  a3 {[%clk 0:01:00]} 33. Qa2 {[%clk 0:00:14]}  Qa4 {[%clk 0:00:58]} 34. e6 {[%clk 0:00:14]}  f6 {[%clk 0:00:53]} 35. Qd2 {[%clk 0:00:13]}  Qb4 {[%clk 0:00:42]} 36. Qxb4 {[%clk 0:00:12]} 1-0


[Site "https://www.chess.com"]

[Event "Titled Tuesday Blitz April 26 Late 2022"]
[White "Quesada Perez, Yuniesky"]
[Black "Ferreira, Vitor Hugo Vieira"]
[WhiteFideId "3504409"]
[BlackFideId "2119765"]
[WhiteElo "2622"]
[BlackElo "2165"]
[Result "0-1"]
[Round "01"]
[TimeControl "180+1"]
[Date "2022.04.26"]
[WhiteClock "0:00:01"]
[BlackClock "0:00:38"]

1. e4 {[%clk 0:02:59]}  c5 {[%clk 0:02:59]} 2. Nf3 {[%clk 0:02:58]}  d6 {[%clk 0:02:59]} 3. d4 {[%clk 0:02:59]}  cxd4 {[%clk 0:02:58]} 4. Nxd4 {[%clk 0:03:00]}  Nf6 {[%clk 0:02:58]} 5. Nc3 {[%clk 0:03:00]}  a6 {[%clk 0:02:57]} 6. Be2 {[%clk 0:02:57]}  e5 {[%clk 0:02:57]} 7. Nb3 {[%clk 0:02:57]}  Be7 {[%clk 0:02:56]} 8. Be3 {[%clk 0:02:57]}  O-O {[%clk 0:02:56]} 9. g4 {[%clk 0:02:55]}  Be6 {[%clk 0:02:54]} 10. g5 {[%clk 0:02:55]}  Nfd7 {[%clk 0:02:53]} 11. h4 {[%clk 0:02:55]}  Nc6 {[%clk 0:02:48]} 12. Bg4 {[%clk 0:02:50]}  b5 {[%clk 0:02:33]} 13. Bxe6 {[%clk 0:02:46]}  fxe6 {[%clk 0:02:33]} 14. Qg4 {[%clk 0:02:47]}  Kh8 {[%clk 0:02:28]} 15. Qxe6 {[%clk 0:02:45]}  Nb6 {[%clk 0:02:27]} 16. O-O-O {[%clk 0:02:27]}  Nc4 {[%clk 0:02:25]} 17. Nd5 {[%clk 0:02:27]}  Nxe3 {[%clk 0:02:23]} 18. fxe3 {[%clk 0:02:26]}  Rc8 {[%clk 0:02:15]} 19. Rhf1 {[%clk 0:02:21]}  Re8 {[%clk 0:01:58]} 20. Nxe7 {[%clk 0:02:13]}  Rxe7 {[%clk 0:01:56]} 21. Qxd6 {[%clk 0:02:09]}  Qe8 {[%clk 0:01:56]} 22. a3 {[%clk 0:01:47]}  a5 {[%clk 0:01:56]} 23. Nc5 {[%clk 0:01:23]}  a4 {[%clk 0:01:51]} 24. Ne6 {[%clk 0:01:20]}  Rxe6 {[%clk 0:01:40]} 25. Qd7 {[%clk 0:01:20]}  Qg8 {[%clk 0:01:35]} 26. Rf7 {[%clk 0:01:14]}  Ree8 {[%clk 0:01:32]} 27. Rdf1 {[%clk 0:00:59]}  b4 {[%clk 0:01:28]} 28. h5 {[%clk 0:00:58]}  bxa3 {[%clk 0:01:27]} 29. bxa3 {[%clk 0:00:58]}  Red8 {[%clk 0:01:21]} 30. Qf5 {[%clk 0:00:52]}  Ne7 {[%clk 0:01:17]} 31. Qxe5 {[%clk 0:00:49]}  Nc6 {[%clk 0:01:05]} 32. Qa1 {[%clk 0:00:38]}  Na5 {[%clk 0:01:01]} 33. Qe5 {[%clk 0:00:32]}  Nb3+ {[%clk 0:00:58]} 34. Kb2 {[%clk 0:00:32]}  Nd2 {[%clk 0:00:55]} 35. Ka1 {[%clk 0:00:07]}  Nxf1 {[%clk 0:00:49]} 36. g6 {[%clk 0:00:07]}  Rd1+ {[%clk 0:00:46]} 37. Kb2 {[%clk 0:00:05]}  Rb8+ {[%clk 0:00:45]} 38. Kc3 {[%clk 0:00:04]}  Qc8+ {[%clk 0:00:44]} 39. Rc7 {[%clk 0:00:02]}  Rb3+ {[%clk 0:00:38]} 40. cxb3 {[%clk 0:00:02]}  Rc1+ {[%clk 0:00:39]} 41. Kb2 {[%clk 0:00:02]}  Rxc7 {[%clk 0:00:38]} 42. h6 {[%clk 0:00:01]}  Rc2+ {[%clk 0:00:38]} 0-1


[Site "https://www.chess.com"]

[Event "Titled Tuesday Blitz April 26 Late 2022"]
[White "Romero Ruscalleda, Josep"]
[Black "Wieczorek, Oskar"]
[WhiteFideId "2231859"]
[BlackFideId "1133950"]
[WhiteElo "2316"]
[BlackElo "2319"]
[Result "0-1"]
[Round "01"]
[TimeControl "180+1"]
[Date "2022.04.26"]
[WhiteClock "0:00:57"]
[BlackClock "0:00:50"]

1. e4 {[%clk 0:03:00]}  c5 {[%clk 0:02:59]} 2. c3 {[%clk 0:03:00]}  Qa5 {[%clk 0:02:58]} 3. Nf3 {[%clk 0:02:59]}  g6 {[%clk 0:02:54]} 4. Bc4 {[%clk 0:02:59]}  Bg7 {[%clk 0:02:54]} 5. O-O {[%clk 0:02:58]}  Qc7 {[%clk 0:02:52]} 6. Qe2 {[%clk 0:02:56]}  d6 {[%clk 0:02:51]} 7. d4 {[%clk 0:02:54]}  Nc6 {[%clk 0:02:40]} 8. Be3 {[%clk 0:02:52]}  cxd4 {[%clk 0:02:37]} 9. cxd4 {[%clk 0:02:52]}  Nf6 {[%clk 0:02:37]} 10. Nc3 {[%clk 0:02:50]}  Bg4 {[%clk 0:02:37]} 11. h3 {[%clk 0:02:34]}  Bxf3 {[%clk 0:02:34]} 12. Qxf3 {[%clk 0:02:34]}  O-O {[%clk 0:02:34]} 13. Qe2 {[%clk 0:02:27]}  Nd7 {[%clk 0:02:32]} 14. Rfd1 {[%clk 0:02:25]}  a6 {[%clk 0:02:28]} 15. Rac1 {[%clk 0:02:18]}  Rac8 {[%clk 0:02:27]} 16. a3 {[%clk 0:02:08]}  Nxd4 {[%clk 0:02:09]} 17. Rxd4 {[%clk 0:01:56]}  Bxd4 {[%clk 0:01:59]} 18. Nd5 {[%clk 0:01:56]}  Bxe3 {[%clk 0:01:54]} 19. Nxc7 {[%clk 0:01:42]}  Bxc1 {[%clk 0:01:53]} 20. Nd5 {[%clk 0:01:42]}  Bg5 {[%clk 0:01:52]} 21. f4 {[%clk 0:01:33]}  Bf6 {[%clk 0:01:51]} 22. Ba2 {[%clk 0:01:19]}  e6 {[%clk 0:01:33]} 23. Nxf6+ {[%clk 0:01:08]}  Nxf6 {[%clk 0:01:34]} 24. f5 {[%clk 0:01:09]}  d5 {[%clk 0:00:59]} 25. e5 {[%clk 0:01:01]}  Ne4 {[%clk 0:00:59]} 26. f6 {[%clk 0:01:00]}  Rc1+ {[%clk 0:00:49]} 27. Kh2 {[%clk 0:00:59]}  Rh1+ {[%clk 0:00:49]} 28. Kxh1 {[%clk 0:00:57]}  Ng3+ {[%clk 0:00:50]} 0-1


[Site "https://www.chess.com"]

[Event "Titled Tuesday Blitz April 26 Late 2022"]
[White "Safarli, Eltaj"]
[Black "Paul, Justin"]
[WhiteFideId "13402129"]
[BlackFideId "2086581"]
[WhiteElo "2634"]
[BlackElo "2034"]
[Result "1-0"]
[Round "01"]
[TimeControl "180+1"]
[Date "2022.04.26"]
[WhiteClock "0:01:27"]
[BlackClock "0:00:17"]

1. e4 {[%clk 0:03:00]}  e5 {[%clk 0:02:56]} 2. Nf3 {[%clk 0:03:00]}  Nc6 {[%clk 0:02:57]} 3. Nc3 {[%clk 0:03:00]}  Nf6 {[%clk 0:02:55]} 4. a3 {[%clk 0:03:01]}  Be7 {[%clk 0:02:54]} 5. d4 {[%clk 0:03:00]}  exd4 {[%clk 0:02:53]} 6. Nxd4 {[%clk 0:03:01]}  d6 {[%clk 0:02:53]} 7. Bb5 {[%clk 0:03:00]}  Bd7 {[%clk 0:02:53]} 8. Bxc6 {[%clk 0:03:01]}  bxc6 {[%clk 0:02:54]} 9. O-O {[%clk 0:03:01]}  O-O {[%clk 0:02:54]} 10. Qf3 {[%clk 0:03:01]}  c5 {[%clk 0:02:42]} 11. Nf5 {[%clk 0:03:01]}  Bxf5 {[%clk 0:02:33]} 12. Qxf5 {[%clk 0:03:02]}  Re8 {[%clk 0:02:29]} 13. Bg5 {[%clk 0:02:57]}  Qd7 {[%clk 0:02:15]} 14. Qf3 {[%clk 0:02:56]}  Qg4 {[%clk 0:02:06]} 15. Qxg4 {[%clk 0:02:56]}  Nxg4 {[%clk 0:02:05]} 16. Bxe7 {[%clk 0:02:56]}  Rxe7 {[%clk 0:02:06]} 17. Nd5 {[%clk 0:02:53]}  Rd7 {[%clk 0:02:00]} 18. Rad1 {[%clk 0:02:46]}  Ne5 {[%clk 0:01:45]} 19. Ne3 {[%clk 0:02:43]}  Rb8 {[%clk 0:01:30]} 20. b3 {[%clk 0:02:43]}  Nc6 {[%clk 0:01:30]} 21. Rd2 {[%clk 0:02:40]}  Re8 {[%clk 0:01:29]} 22. f3 {[%clk 0:02:40]}  f6 {[%clk 0:01:28]} 23. c3 {[%clk 0:02:38]}  a5 {[%clk 0:01:23]} 24. Nc4 {[%clk 0:02:38]}  Rb8 {[%clk 0:01:23]} 25. Rb1 {[%clk 0:02:38]}  Kf7 {[%clk 0:01:22]} 26. Kf2 {[%clk 0:02:35]}  Ke6 {[%clk 0:01:21]} 27. h4 {[%clk 0:02:35]}  Rdd8 {[%clk 0:01:19]} 28. h5 {[%clk 0:02:34]}  Ra8 {[%clk 0:01:15]} 29. a4 {[%clk 0:02:20]}  Rdb8 {[%clk 0:01:11]} 30. f4 {[%clk 0:02:13]}  Rb7 {[%clk 0:01:04]} 31. g4 {[%clk 0:02:13]}  Rab8 {[%clk 0:01:03]} 32. Rdb2 {[%clk 0:02:14]}  g6 {[%clk 0:00:56]} 33. h6 {[%clk 0:02:08]}  g5 {[%clk 0:00:52]} 34. f5+ {[%clk 0:02:04]}  Kf7 {[%clk 0:00:51]} 35. Ke2 {[%clk 0:02:01]}  Re8 {[%clk 0:00:50]} 36. Kd3 {[%clk 0:02:02]}  Ne5+ {[%clk 0:00:49]} 37. Nxe5+ {[%clk 0:02:02]}  Rxe5 {[%clk 0:00:50]} 38. b4 {[%clk 0:01:57]}  cxb4 {[%clk 0:00:45]} 39. cxb4 {[%clk 0:01:58]}  Ra7 {[%clk 0:00:23]} 40. Rc2 {[%clk 0:01:54]}  Ke7 {[%clk 0:00:19]} 41. b5 {[%clk 0:01:52]}  Rb7 {[%clk 0:00:18]} 42. Kd4 {[%clk 0:01:52]}  Kd7 {[%clk 0:00:19]} 43. Rc6 {[%clk 0:01:52]}  Rb6 {[%clk 0:00:19]} 44. Rbc1 {[%clk 0:01:51]}  Rb7 {[%clk 0:00:18]} 45. Ra6 {[%clk 0:01:49]}  Kc8 {[%clk 0:00:14]} 46. Rxa5 {[%clk 0:01:41]}  c5+ {[%clk 0:00:14]} 47. Kd3 {[%clk 0:01:37]}  Kb8 {[%clk 0:00:15]} 48. Ra6 {[%clk 0:01:37]}  d5 {[%clk 0:00:15]} 49. Rxf6 {[%clk 0:01:32]}  dxe4+ {[%clk 0:00:15]} 50. Ke3 {[%clk 0:01:32]}  Rd7 {[%clk 0:00:16]} 51. Rc3 {[%clk 0:01:30]}  Rd1 {[%clk 0:00:17]} 52. Re6 {[%clk 0:01:28]}  Rxe6 {[%clk 0:00:16]} 53. fxe6 {[%clk 0:01:28]}  Rd4 {[%clk 0:00:17]} 54. e7 {[%clk 0:01:27]} 1-0


[Site "https://www.chess.com"]

[Event "Titled Tuesday Blitz April 26 Late 2022"]
[White "Sarkar, Justin"]
[Black "Khanin, Semen"]
[WhiteFideId "2010011"]
[BlackFideId "4111990"]
[WhiteElo "2038"]
[BlackElo "2442"]
[Result "1/2-1/2"]
[Round "01"]
[TimeControl "180+1"]
[Date "2022.04.26"]
[WhiteClock "0:00:03"]
[BlackClock "0:00:02"]

1. d4 {[%clk 0:02:51]}  Nf6 {[%clk 0:02:59]} 2. c4 {[%clk 0:02:50]}  e6 {[%clk 0:02:58]} 3. Nc3 {[%clk 0:02:44]}  d5 {[%clk 0:02:56]} 4. Bg5 {[%clk 0:02:33]}  c6 {[%clk 0:02:50]} 5. e3 {[%clk 0:02:30]}  Nbd7 {[%clk 0:02:49]} 6. Nf3 {[%clk 0:02:24]}  h6 {[%clk 0:02:48]} 7. Bh4 {[%clk 0:02:22]}  Be7 {[%clk 0:02:46]} 8. Rc1 {[%clk 0:02:11]}  O-O {[%clk 0:02:44]} 9. Bd3 {[%clk 0:02:10]}  b6 {[%clk 0:02:41]} 10. O-O {[%clk 0:02:07]}  Bb7 {[%clk 0:02:42]} 11. Qe2 {[%clk 0:01:59]}  c5 {[%clk 0:02:37]} 12. Rfd1 {[%clk 0:01:53]}  Ne4 {[%clk 0:02:29]} 13. Bxe7 {[%clk 0:01:45]}  Qxe7 {[%clk 0:02:24]} 14. cxd5 {[%clk 0:01:36]}  exd5 {[%clk 0:02:24]} 15. dxc5 {[%clk 0:01:28]}  Nxc3 {[%clk 0:02:21]} 16. Rxc3 {[%clk 0:01:27]}  bxc5 {[%clk 0:02:22]} 17. Rdc1 {[%clk 0:01:12]}  Rac8 {[%clk 0:02:21]} 18. Bf5 {[%clk 0:01:10]}  d4 {[%clk 0:02:15]} 19. R3c2 {[%clk 0:01:06]}  dxe3 {[%clk 0:02:11]} 20. Qxe3 {[%clk 0:01:02]}  Qxe3 {[%clk 0:02:01]} 21. fxe3 {[%clk 0:01:03]}  Rcd8 {[%clk 0:01:49]} 22. Bxd7 {[%clk 0:00:52]}  Rxd7 {[%clk 0:01:49]} 23. Rxc5 {[%clk 0:00:53]}  Re8 {[%clk 0:01:50]} 24. Rc7 {[%clk 0:00:43]}  Rxc7 {[%clk 0:01:02]} 25. Rxc7 {[%clk 0:00:44]}  Bd5 {[%clk 0:01:02]} 26. Rxa7 {[%clk 0:00:36]}  Rxe3 {[%clk 0:01:01]} 27. Kf2 {[%clk 0:00:35]}  Re4 {[%clk 0:01:01]} 28. b3 {[%clk 0:00:32]}  g5 {[%clk 0:01:01]} 29. Rd7 {[%clk 0:00:29]}  Be6 {[%clk 0:01:01]} 30. Rd4 {[%clk 0:00:26]}  Rxd4 {[%clk 0:00:40]} 31. Nxd4 {[%clk 0:00:24]}  Bd5 {[%clk 0:00:41]} 32. a4 {[%clk 0:00:23]}  Kf8 {[%clk 0:00:41]} 33. b4 {[%clk 0:00:20]}  Ke7 {[%clk 0:00:41]} 34. Nf5+ {[%clk 0:00:19]}  Kf6 {[%clk 0:00:39]} 35. Nxh6 {[%clk 0:00:18]}  Be6 {[%clk 0:00:36]} 36. g4 {[%clk 0:00:17]}  Ke5 {[%clk 0:00:35]} 37. a5 {[%clk 0:00:15]}  Kd5 {[%clk 0:00:34]} 38. a6 {[%clk 0:00:11]}  Kc6 {[%clk 0:00:34]} 39. b5+ {[%clk 0:00:10]}  Kb6 {[%clk 0:00:30]} 40. Ke3 {[%clk 0:00:10]}  Bc4 {[%clk 0:00:30]} 41. Kd4 {[%clk 0:00:09]}  Bxb5 {[%clk 0:00:30]} 42. Nxf7 {[%clk 0:00:09]}  Bxa6 {[%clk 0:00:30]} 43. Nxg5 {[%clk 0:00:09]}  Be2 {[%clk 0:00:29]} 44. h3 {[%clk 0:00:08]}  Kc6 {[%clk 0:00:30]} 45. Ke5 {[%clk 0:00:08]}  Kd7 {[%clk 0:00:28]} 46. Ne4 {[%clk 0:00:07]}  Ke7 {[%clk 0:00:27]} 47. Kf4 {[%clk 0:00:07]}  Kf7 {[%clk 0:00:26]} 48. h4 {[%clk 0:00:07]}  Kg7 {[%clk 0:00:25]} 49. h5 {[%clk 0:00:07]}  Kh6 {[%clk 0:00:25]} 50. Ng3 {[%clk 0:00:07]}  Bd1 {[%clk 0:00:23]} 51. Nf5+ {[%clk 0:00:07]}  Kh7 {[%clk 0:00:23]} 52. Kg5 {[%clk 0:00:07]}  Be2 {[%clk 0:00:23]} 53. Nd6 {[%clk 0:00:06]}  Bd1 {[%clk 0:00:23]} 54. Ne4 {[%clk 0:00:06]}  Be2 {[%clk 0:00:22]} 55. Nf6+ {[%clk 0:00:06]}  Kg7 {[%clk 0:00:22]} 56. h6+ {[%clk 0:00:06]}  Kf7 {[%clk 0:00:22]} 57. Kf5 {[%clk 0:00:06]}  Bd3+ {[%clk 0:00:20]} 58. Ne4 {[%clk 0:00:06]}  Kg8 {[%clk 0:00:09]} 59. g5 {[%clk 0:00:06]}  Kh7 {[%clk 0:00:10]} 60. Kf4 {[%clk 0:00:05]}  Kg6 {[%clk 0:00:10]} 61. Nf6 {[%clk 0:00:05]}  Bb1 {[%clk 0:00:09]} 62. Nd5 {[%clk 0:00:04]}  Bc2 {[%clk 0:00:08]} 63. Ne3 {[%clk 0:00:04]}  Bb1 {[%clk 0:00:07]} 64. Ng4 {[%clk 0:00:04]}  Bc2 {[%clk 0:00:07]} 65. Ne5+ {[%clk 0:00:04]}  Kh7 {[%clk 0:00:07]} 66. Kg4 {[%clk 0:00:04]}  Bd1+ {[%clk 0:00:03]} 67. Kf5 {[%clk 0:00:04]}  Bc2+ {[%clk 0:00:03]} 68. Kf6 {[%clk 0:00:04]}  Bb1 {[%clk 0:00:03]} 69. Nf7 {[%clk 0:00:03]}  Bc2 {[%clk 0:00:03]} 70. Nd8 {[%clk 0:00:03]}  Bb1 {[%clk 0:00:03]} 71. Ne6 {[%clk 0:00:02]}  Bc2 {[%clk 0:00:04]} 72. Nd4 {[%clk 0:00:02]}  Bb1 {[%clk 0:00:04]} 73. Nf5 {[%clk 0:00:03]}  Kh8 {[%clk 0:00:01]} 74. g6 {[%clk 0:00:03]}  Ba2 {[%clk 0:00:02]} 75. g7+ {[%clk 0:00:03]}  Kh7 {[%clk 0:00:01]} 76. Kg5 {[%clk 0:00:03]}  Be6 {[%clk 0:00:01]} 77. Ne7 {[%clk 0:00:03]}  Bf7 {[%clk 0:00:01]} 78. Ng6 {[%clk 0:00:02]}  Bxg6 {[%clk 0:00:01]} 79. g8=Q+ {[%clk 0:00:02]}  Kxg8 {[%clk 0:00:01]} 80. Kxg6 {[%clk 0:00:03]}  Kh8 {[%clk 0:00:02]} 81. h7 {[%clk 0:00:03]} 1/2-1/2


[Site "https://www.chess.com"]

[Event "Titled Tuesday Blitz April 26 Late 2022"]
[White "Shirov, Alexei"]
[Black "Vega Gutierrez, Sabrina"]
[WhiteFideId "2209390"]
[BlackFideId "2219026"]
[WhiteElo "2678"]
[BlackElo "2286"]
[Result "1-0"]
[Round "01"]
[TimeControl "180+1"]
[Date "2022.04.26"]
[WhiteClock "0:01:15"]
[BlackClock "0:00:37"]

1. e4 {[%clk 0:03:00]}  c5 {[%clk 0:02:58]} 2. Nf3 {[%clk 0:03:00]}  Nc6 {[%clk 0:02:59]} 3. Nc3 {[%clk 0:02:58]}  Nf6 {[%clk 0:02:58]} 4. d4 {[%clk 0:02:56]}  cxd4 {[%clk 0:02:58]} 5. Nxd4 {[%clk 0:02:56]}  e5 {[%clk 0:02:58]} 6. Ndb5 {[%clk 0:02:53]}  d6 {[%clk 0:02:59]} 7. Nd5 {[%clk 0:02:52]}  Nxd5 {[%clk 0:02:58]} 8. exd5 {[%clk 0:02:51]}  Nb8 {[%clk 0:02:59]} 9. c4 {[%clk 0:02:43]}  Be7 {[%clk 0:02:58]} 10. c5 {[%clk 0:02:34]}  O-O {[%clk 0:02:53]} 11. Be2 {[%clk 0:02:27]}  a6 {[%clk 0:02:46]} 12. Nxd6 {[%clk 0:02:25]}  Bxd6 {[%clk 0:02:47]} 13. cxd6 {[%clk 0:02:25]}  Qxd6 {[%clk 0:02:46]} 14. O-O {[%clk 0:02:21]}  Nd7 {[%clk 0:02:46]} 15. Be3 {[%clk 0:02:19]}  Nf6 {[%clk 0:02:30]} 16. Bc4 {[%clk 0:02:08]}  b5 {[%clk 0:02:27]} 17. Bb3 {[%clk 0:02:07]}  Bb7 {[%clk 0:02:26]} 18. Rc1 {[%clk 0:02:05]}  Rac8 {[%clk 0:02:26]} 19. Qd2 {[%clk 0:02:00]}  Bxd5 {[%clk 0:01:49]} 20. Rxc8 {[%clk 0:01:54]}  Rxc8 {[%clk 0:01:48]} 21. Rd1 {[%clk 0:01:53]}  Rd8 {[%clk 0:01:21]} 22. Bg5 {[%clk 0:01:52]}  Ne4 {[%clk 0:01:15]} 23. Qe3 {[%clk 0:01:45]}  Nxg5 {[%clk 0:01:05]} 24. Qxg5 {[%clk 0:01:32]}  h6 {[%clk 0:00:46]} 25. Qd2 {[%clk 0:01:18]}  Bxb3 {[%clk 0:00:36]} 26. Qxd6 {[%clk 0:01:18]}  Rxd6 {[%clk 0:00:37]} 27. Rxd6 {[%clk 0:01:18]}  Bxa2 {[%clk 0:00:38]} 28. Rxa6 {[%clk 0:01:17]}  Bc4 {[%clk 0:00:37]} 29. f3 {[%clk 0:01:15]} 1-0


[Site "https://www.chess.com"]